[Event "58th Akiba Rubinstein A 2022"]
[Site "Polanica-Zdroj"]
[Date "2022.08.14"]
[Round "2.6"]
[White "Rog, Bartlomiej"]
[Black "Paszkowski, Krystian"]
[Result "1/2-1/2"]
[ECO "B31"]
[WhiteElo "2091"]
[BlackElo "1988"]
[Annotator "NA RC"]
[PlyCount "120"]
[EventDate "2022.08.13"]
[EventCountry "POL"]
[SourceTitle "playchess.com"]
[Source "ChessBase"]
[SourceQuality "1"]
[TimeControl "40/5400+30:1800+30"]

1. e4 {[%emt 0:00:31]} c5 {[%emt 0:00:07]} 2. Nf3 {[%emt 0:00:07]} Nc6 {[%emt 0:00:02]} 3. Bb5 {[%emt 0:00:14]} g6 {[%emt 0:00:03]} 4. Bxc6 {[%emt 0:00:09]} dxc6 {[%emt 0:00:03]} 5. d3 {[%emt 0:00:07]} Bg7 {[%emt 0:00:10]} 6. h3 {[%emt 0:00:08]} Nf6 {[%emt 0:00:17]} 7. Nc3 {[%emt 0:00:07]} Nd7 {[%emt 0:00:05]} 8. Be3 {[%emt 0:00:08]} e5 {[%emt 0:00:04]} 9. Qd2 {[%emt 0:00:08]} h6 {[%emt 0:00:02]} 10. Nh2 {[%emt 0:00:41]} b6 {[%emt 0:01:45]} 11. O-O {[%emt 0:00:09]} Nf8 {[%emt 0:00:04]} 12. a4 {[%emt 0:00:06]} a5 {[%emt 0:18:24]} 13. f4 {[%emt 0:00:11]} exf4 {[%emt 0:00:02]} 14. Bxf4 {[%emt 0:00:08]} Ne6 {[%emt 0:00:04]} 15. Be3 {[%emt 0:00:06]} Nd4 {[%emt 0:00:18]} 16. Rae1 {[%emt 0:00:08]} Be6 {[%emt 0:23:40]} 17. e5 {[%emt 0:00:12]} Nf5 {[%emt 0:17:22]} 18. Nf3 {[%emt 0:00:10]} Nxe3 {[%emt 0:04:27]} 19. Qxe3 {[%emt 0:00:08]} Qc7 {[%emt 0:05:19]} 20. Ne4 {[%emt 0:09:59]} O-O-O {[%emt 0:07:33]} 21. Nd6+ {[%emt 0:01:07]} Rxd6 {[%emt 0:05:34]} 22. exd6 {[%emt 0:00:07]} Qxd6 {[%emt 0:00:04]} 23. c3 {[%emt 0:20:00]} Rd8 {[%emt 0:01:24]} 24. Rd1 {[%emt 0:00:23]} Bxh3 {[%emt 0:01:34]} 25. d4 {[%emt 0:20:46]} Qg3 {[%emt 0:04:01]} 26. Qe2 {[%emt 0:02:51]} Kb7 {[%emt 0:01:45]} 27. dxc5 {[%emt 0:01:26]} Re8 {[%emt 0:02:17]} 28. Qc2 {[%emt 0:12:31]} Bf8 {[%emt 0:06:22]} 29. Nd4 {[%emt 0:14:18]} Bxc5 {[%emt 0:01:33]} 30. Rxf7+ {[%emt 0:00:13]} Ka8 {[%emt 0:00:27]} 31. Rf3 {[%emt 0:06:41]} Re1+ {[%emt 0:00:28]} 32. Rxe1 {[%emt 0:00:08]} Qxe1+ {[%emt 0:00:03]} 33. Rf1 {[%emt 0:00:34]} Qe3+ {[%emt 0:01:02]} 34. Kh1 {[%emt 0:00:07]} Bd7 {[%emt 0:00:29]} 35. Qxg6 {[%emt 0:01:05]} Bxd4 {[%emt 0:00:20]} 36. cxd4 {[%emt 0:00:09]} Qxd4 {[%emt 0:00:14]} 37. Qxh6 {[%emt 0:01:16]} Qxa4 {[%emt 0:00:48]} 38. Rf4 {[%emt 0:08:44]} Qd1+ {[%emt 0:00:41]} 39. Kh2 {[%emt 0:00:01]} Kb7 {[%emt 0:00:27]} 40. Qh8 {[%emt 0:00:00]} Qd6 {[%emt 0:00:00]} 41. Qd4 {[%emt 0:03:31]} Kc7 {[%emt 0:15:20]} 42. Qxd6+ {[%emt 0:04:32]} Kxd6 {[%emt 0:00:02]} 43. g4 {[%emt 0:00:11]} Ke5 {[%emt 0:01:29]} 44. Kg3 {[%emt 0:00:10]} b5 {[%emt 0:05:38]} 45. Rf1 {[%emt 0:05:03]} c5 {[%emt 0:03:06]} 46. g5 {[%emt 0:02:18]} Bf5 {[%emt 0:01:35]} 47. Re1+ {[%emt 0:00:05]} Kd4 {[%emt 0:01:42]} 48. Kf4 {[%emt 0:00:26]} Bc2 {[%emt 0:01:53]} 49. Re2 {[%emt 0:01:47]} Bb1 {[%emt 0:00:33]} 50. Rd2+ {[%emt 0:01:34]} Kc4 {[%emt 0:00:02]} 51. Ke5 {[%emt 0:00:47]} b4 {[%emt 0:01:16]} 52. Rd1 {[%emt 0:00:58]} Bh7 {[%emt 0:00:49]} 53. Rc1+ {[%emt 0:03:38]} Kb5 {[%emt 0:01:17]} 54. Rh1 {[%emt 0:02:39]} Bc2 {[%emt 0:00:51]} 55. Rh8 {[%emt 0:02:05]} a4 {[%emt 0:01:25]} 56. Ra8 {[%emt 0:01:30]} Kc4 {[%emt 0:00:45]} 57. Kd6 {[%emt 0:02:44]} Kb3 {[%emt 0:00:54]} 58. Kxc5 {[%emt 0:00:06]} a3 {[%emt 0:00:10]} 59. bxa3 {[%emt 0:01:44]} bxa3 {[%emt 0:00:10]} 60. Rb8+ {[%emt 0:00:05]} Kc3 {[%emt 0:00:21]} 1/2-1/2

[Event "58th Akiba Rubinstein A 2022"]
[Site "Polanica-Zdroj"]
[Date "2022.08.14"]
[Round "2.7"]
[White "Skurniak, Szymon"]
[Black "Majocha, Piotr"]
[Result "1/2-1/2"]
[ECO "C18"]
[WhiteElo "2051"]
[BlackElo "2036"]
[Annotator "NA RC"]
[PlyCount "63"]
[EventDate "2022.08.13"]
[EventCountry "POL"]
[SourceTitle "playchess.com"]
[Source "ChessBase"]
[SourceQuality "1"]
[TimeControl "40/5400+30:1800+30"]

1. e4 e6 2. d4 d5 3. Nc3 Bb4 4. e5 c5 5. a3 Bxc3+ 6. bxc3 Ne7 7. Qg4 Qc7 8. Qxg7 Rg8 9. Qxh7 cxd4 10. Qd3 dxc3 11. Nf3 b6 12. h4 Ba6 13. Qd4 Bxf1 14. Kxf1 Nf5 15. Qa4+ Nd7 16. Bg5 Rc8 17. g4 Ne7 18. h5 Qc4+ 19. Qxc4 Rxc4 20. Bxe7 Kxe7 21. g5 Rf4 22. Rh3 Nc5 23. h6 Ne4 24. Ke2 Rg4 25. h7 Rh8 26. Rah1 Kf8 27. R1h2 Kg7 28. Rh5 Kg6 29. Rh6+ Kg7 30. R6h5 Kg6 31. Rh6+ Kg7 32. R6h5 1/2-1/2

[Event "58th Akiba Rubinstein A 2022"]
[Site "Polanica-Zdroj"]
[Date "2022.08.14"]
[Round "2.8"]
[White "Betkowski, Andrzej"]
[Black "Kasprzak, Lukasz"]
[Result "1/2-1/2"]
[ECO "A45"]
[WhiteElo "2063"]
[BlackElo "1938"]
[Annotator "NA RC"]
[PlyCount "94"]
[EventDate "2022.08.13"]
[EventCountry "POL"]
[SourceTitle "playchess.com"]
[Source "ChessBase"]
[SourceQuality "1"]
[TimeControl "40/5400+30:1800+30"]

1. d4 {[%emt 0:00:04]} Nf6 {[%emt 0:01:17]} 2. Nc3 {[%emt 0:00:15]} d5 {[%emt 0:01:25]} 3. Bf4 {[%emt 0:00:16]} a6 {[%emt 0:04:51]} 4. e3 {[%emt 0:01:33]} Bf5 {[%emt 0:12:17]} 5. f3 {[%emt 0:02:13]} c5 {[%emt 0:17:31]} 6. g4 {[%emt 0:10:39]} cxd4 {[%emt 0:03:35]} 7. exd4 {[%emt 0:00:55]} Bg6 {[%emt 0:07:14]} 8. h4 {[%emt 0:01:56]} h6 {[%emt 0:01:36]} 9. Bd3 {[%emt 0:07:37]} Bxd3 {[%emt 0:00:55]} 10. Qxd3 {[%emt 0:00:30]} e6 {[%emt 0:04:17]} 11. O-O-O {[%emt 0:03:58]} Nc6 {[%emt 0:02:29]} 12. Nge2 {[%emt 0:02:47]} Bd6 {[%emt 0:06:36]} 13. Kb1 {[%emt 0:16:55]} Qc7 {[%emt 0:02:54]} 14. Qe3 {[%emt 0:03:06]} O-O-O {[%emt 0:02:38]} 15. Na4 {[%emt 0:03:50]} Nd7 {[%emt 0:03:49]} 16. Rd3 {[%emt 0:04:40]} Rhe8 {[%emt 0:09:23]} 17. Bxd6 {[%emt 0:03:56]} Qxd6 {[%emt 0:00:03]} 18. f4 {[%emt 0:03:03]} Nf6 {[%emt 0:06:10]} 19. g5 Ng4 {[%emt 0:03:06]} 20. Qg3 {[%emt 0:06:45]} h5 {[%emt 0:00:06]} 21. Rb3 {[%emt 0:02:52]} Re7 {[%emt 0:01:15]} 22. Rb6 {[%emt 0:07:02]} Qc7 {[%emt 0:03:25]} 23. Rf1 {[%emt 0:03:06]} Rd6 {[%emt 0:01:14]} 24. Qa3 {[%emt 0:05:06]} Red7 {[%emt 0:01:50]} 25. Rb3 {[%emt 0:03:48]} Na5 {[%emt 0:01:16]} 26. Nb6+ {[%emt 0:01:38]} Rxb6 {[%emt 0:00:12]} 27. Qxa5 {[%emt 0:00:25]} Rxb3 {[%emt 0:00:11]} 28. Qxc7+ {[%emt 0:00:17]} Rxc7 {[%emt 0:00:08]} 29. axb3 {[%emt 0:01:27]} Rxc2 {[%emt 0:01:24]} 30. Ng3 {[%emt 0:01:11]} Rh2 {[%emt 0:01:32]} 31. f5 {[%emt 0:01:10]} Rxh4 {[%emt 0:00:36]} 32. fxe6 {[%emt 0:00:12]} fxe6 {[%emt 0:00:03]} 33. Rf8+ {[%emt 0:00:41]} Kc7 {[%emt 0:00:17]} 34. Rf7+ {[%emt 0:00:07]} Kc6 {[%emt 0:00:14]} 35. Rxg7 {[%emt 0:00:18]} Rh3 {[%emt 0:00:17]} 36. Ne2 {[%emt 0:00:35]} Rh1+ {[%emt 0:00:05]} 37. Ka2 {[%emt 0:01:38]} Ne3 {[%emt 0:00:13]} 38. g6 {[%emt 0:00:48]} a5 {[%emt 0:01:26]} 39. b4 {[%emt 0:00:40]} a4 {[%emt 0:00:07]} 40. b5+ {[%emt 0:00:00]} Kb6 {[%emt 0:00:00]} 41. Rxb7+ {[%emt 0:19:52]} Kxb7 {[%emt 0:07:18]} 42. g7 {[%emt 0:00:06]} Nc2 {[%emt 0:03:21]} 43. b4 {[%emt 0:00:09]} Nxb4+ {[%emt 0:03:16]} 44. Ka3 {[%emt 0:01:33]} Nd3 {[%emt 0:02:08]} 45. Ka2 {[%emt 0:01:11]} Nb4+ {[%emt 0:03:08]} 46. Ka3 {[%emt 0:00:06]} Nd3 {[%emt 0:03:46]} 47. Ka2 {[%emt 0:00:08]} Nb4+ 1/2-1/2

[Event "58th Akiba Rubinstein A 2022"]
[Site "Polanica-Zdroj"]
[Date "2022.08.14"]
[Round "2.9"]
[White "Smietanska, Wiktoria"]
[Black "Barwinska, Ewa"]
[Result "1/2-1/2"]
[ECO "B46"]
[WhiteElo "1919"]
[BlackElo "1940"]
[Annotator "NA RC"]
[PlyCount "86"]
[EventDate "2022.08.13"]
[EventCountry "POL"]
[SourceTitle "playchess.com"]
[Source "ChessBase"]
[SourceQuality "1"]
[TimeControl "40/5400+30:1800+30"]

1. e4 {[%emt 0:00:02]} c5 {[%emt 0:00:07]} 2. Nf3 {[%emt 0:00:06]} e6 {[%emt 0:00:34]} 3. d4 {[%emt 0:00:09]} cxd4 {[%emt 0:00:05]} 4. Nxd4 {[%emt 0:00:10]} Nc6 {[%emt 0:00:12]} 5. Nc3 {[%emt 0:00:15]} a6 {[%emt 0:00:35]} 6. Be2 {[%emt 0:01:32]} Qc7 {[%emt 0:00:10]} 7. O-O {[%emt 0:01:25]} Nf6 {[%emt 0:01:16]} 8. Be3 {[%emt 0:02:15]} b5 {[%emt 0:10:58]} 9. a3 {[%emt 0:05:58]} Bb7 {[%emt 0:05:56]} 10. f4 {[%emt 0:07:53]} d6 {[%emt 0:05:41]} 11. Bf3 {[%emt 0:02:17]} Be7 {[%emt 0:03:42]} 12. Re1 {[%emt 0:09:23]} O-O {[%emt 0:04:27]} 13. Qe2 {[%emt 0:06:26]} Nd7 {[%emt 0:04:50]} 14. Qf2 {[%emt 0:08:42]} Bf6 {[%emt 0:05:29]} 15. Rad1 {[%emt 0:05:05]} Nxd4 {[%emt 0:04:46]} 16. Bxd4 {[%emt 0:00:13]} e5 {[%emt 0:02:35]} 17. Be3 {[%emt 0:01:38]} exf4 {[%emt 0:01:59]} 18. Bxf4 {[%emt 0:00:23]} Bxc3 {[%emt 0:03:31]} 19. bxc3 {[%emt 0:01:11]} Ne5 {[%emt 0:04:32]} 20. Qd4 {[%emt 0:01:46]} Rac8 {[%emt 0:13:38]} 21. Qxd6 {[%emt 0:04:08]} Nxf3+ {[%emt 0:02:37]} 22. gxf3 {[%emt 0:00:18]} Qxc3 {[%emt 0:00:59]} 23. Be3 {[%emt 0:13:54]} Rc6 {[%emt 0:09:03]} 24. Qe7 {[%emt 0:01:59]} Rc7 {[%emt 0:09:28]} 25. Qd6 {[%emt 0:00:47]} Rcc8 {[%emt 0:03:23]} 26. Qe7 {[%emt 0:01:49]} Bc6 {[%emt 0:01:21]} 27. Re2 {[%emt 0:02:22]} Rfe8 {[%emt 0:00:42]} 28. Qd6 {[%emt 0:04:44]} Re6 {[%emt 0:00:16]} 29. Qd3 {[%emt 0:01:22]} Qf6 {[%emt 0:01:05]} 30. Rg2 {[%emt 0:01:00]} Qe7 {[%emt 0:00:44]} 31. Bg5 {[%emt 0:01:34]} Qc7 {[%emt 0:00:23]} 32. Qd4 {[%emt 0:01:15]} Rg6 {[%emt 0:00:40]} 33. Qd8+ {[%emt 0:13:44]} Rxd8 {[%emt 0:00:12]} 34. Rxd8+ {[%emt 0:00:05]} Qxd8 {[%emt 0:00:04]} 35. Bxd8 {[%emt 0:00:08]} Rxg2+ {[%emt 0:01:03]} 36. Kxg2 {[%emt 0:00:05]} f6 {[%emt 0:00:30]} 37. Kf2 {[%emt 0:00:09]} Kf7 {[%emt 0:00:07]} 38. Ke3 {[%emt 0:00:08]} Ke6 {[%emt 0:00:56]} 39. Kd4 {[%emt 0:00:14]} f5 {[%emt 0:00:49]} 40. Bg5 {[%emt 0:00:00]} h6 {[%emt 0:00:00]} 41. Bd2 {[%emt 0:06:00]} g5 {[%emt 0:05:57]} 42. Kc5 {[%emt 0:01:13]} Ba8 {[%emt 0:00:50]} 43. Kd4 {[%emt 0:00:25]} Bb7 {[%emt 0:01:02]} 1/2-1/2

[Event "58th Akiba Rubinstein A 2022"]
[Site "Polanica-Zdroj"]
[Date "2022.08.14"]
[Round "2.10"]
[White "Wolanski, Michal"]
[Black "Antoniewicz, Jakub"]
[Result "0-1"]
[ECO "A20"]
[WhiteElo "2005"]
[BlackElo "1931"]
[Annotator "NA RC"]
[PlyCount "82"]
[EventDate "2022.08.13"]
[EventCountry "POL"]
[SourceTitle "playchess.com"]
[Source "ChessBase"]
[SourceQuality "1"]
[TimeControl "40/5400+30:1800+30"]

1. c4 {[%emt 0:00:11]} e5 {[%emt 0:00:04]} 2. g3 {[%emt 0:00:06]} Nc6 {[%emt 0:00:04]} 3. Bg2 {[%emt 0:00:08]} f5 {[%emt 0:00:04]} 4. Nc3 {[%emt 0:00:14]} Nf6 {[%emt 0:00:06]} 5. e3 {[%emt 0:00:23]} d5 {[%emt 0:00:06]} 6. cxd5 {[%emt 0:01:06]} Nb4 {[%emt 0:01:47]} 7. d3 {[%emt 0:00:10]} Nfxd5 {[%emt 0:00:04]} 8. Nge2 {[%emt 0:00:14]} Nxc3 {[%emt 0:01:45]} 9. Nxc3 {[%emt 0:00:39]} Qxd3 {[%emt 0:06:07]} 10. Qxd3 {[%emt 0:00:49]} Nxd3+ {[%emt 0:00:01]} 11. Ke2 {[%emt 0:00:26]} Nxc1+ {[%emt 0:00:32]} 12. Raxc1 {[%emt 0:00:07]} c6 {[%emt 0:00:03]} 13. f4 {[%emt 0:01:37]} exf4 {[%emt 0:17:29]} 14. exf4 {[%emt 0:00:11]} Be7 {[%emt 0:01:05]} 15. Rhe1 {[%emt 0:01:45]} Kf7 {[%emt 0:01:57]} 16. Kf1 {[%emt 0:01:37]} Be6 {[%emt 0:05:02]} 17. b3 {[%emt 0:03:35]} Rad8 {[%emt 0:08:37]} 18. Re2 {[%emt 0:01:51]} Bb4 {[%emt 0:01:36]} 19. Nd1 {[%emt 0:12:04]} Rhe8 {[%emt 0:07:17]} 20. Ne3 {[%emt 0:01:48]} Bd2 {[%emt 0:14:16]} 21. Rc2 {[%emt 0:10:47]} Bxe3 {[%emt 0:00:33]} 22. Rxe3 {[%emt 0:00:09]} Bc4+ {[%emt 0:00:47]} 23. Kf2 {[%emt 0:00:18]} Rxe3 {[%emt 0:08:52]} 24. Kxe3 {[%emt 0:00:04]} Rd3+ {[%emt 0:00:11]} 25. Kf2 {[%emt 0:00:34]} Bd5 {[%emt 0:00:10]} 26. Ke2 {[%emt 0:08:08]} Bxg2 {[%emt 0:00:12]} 27. Kxd3 {[%emt 0:00:24]} Be4+ {[%emt 0:00:04]} 28. Kc3 {[%emt 0:00:07]} Bxc2 {[%emt 0:00:05]} 29. Kxc2 {[%emt 0:00:04]} Ke6 {[%emt 0:00:14]} 30. Kc3 {[%emt 0:00:27]} Kd5 {[%emt 0:00:11]} 31. Kd3 {[%emt 0:00:06]} a5 {[%emt 0:03:34]} 32. Ke3 {[%emt 0:04:25]} b5 {[%emt 0:01:45]} 33. Kd3 {[%emt 0:00:44]} c5 {[%emt 0:00:21]} 34. a3 {[%emt 0:12:58]} c4+ {[%emt 0:00:39]} 35. bxc4+ {[%emt 0:00:05]} bxc4+ {[%emt 0:00:03]} 36. Kc3 {[%emt 0:00:36]} Kc5 {[%emt 0:00:18]} 37. Kc2 {[%emt 0:00:23]} Kd4 {[%emt 0:00:25]} 38. Kd2 {[%emt 0:00:56]} c3+ {[%emt 0:00:41]} 39. Kd1 {[%emt 0:00:17]} Kc4 {[%emt 0:00:38]} 40. Kc2 {[%emt 0:00:00]} a4 {[%emt 0:00:00]} 41. h3 {[%emt 0:00:55]} h5 {[%emt 0:00:24]} 0-1

[Event "58th Akiba Rubinstein A 2022"]
[Site "Polanica-Zdroj"]
[Date "2022.08.14"]
[Round "2.11"]
[White "Hetzer, Volkhard"]
[Black "Bugajski, Robert"]
[Result "1/2-1/2"]
[ECO "B50"]
[WhiteElo "1921"]
[BlackElo "2075"]
[Annotator "NA RC"]
[PlyCount "82"]
[EventDate "2022.08.13"]
[EventCountry "POL"]
[SourceTitle "playchess.com"]
[Source "ChessBase"]
[SourceQuality "1"]
[TimeControl "40/5400+30:1800+30"]

1. e4 {[%emt 0:03:16]} c5 {[%emt 0:00:16]} 2. Nf3 {[%emt 0:00:07]} d6 {[%emt 0:00:12]} 3. Bc4 {[%emt 0:00:28]} Nc6 {[%emt 0:00:47]} 4. O-O {[%emt 0:09:56]} Nf6 {[%emt 0:00:28]} 5. d3 {[%emt 0:00:33]} e6 {[%emt 0:01:10]} 6. Bb3 {[%emt 0:02:33]} Be7 {[%emt 0:00:23]} 7. c3 {[%emt 0:00:51]} O-O {[%emt 0:00:20]} 8. Re1 {[%emt 0:00:30]} b6 {[%emt 0:10:40]} 9. d4 {[%emt 0:05:50]} Bb7 {[%emt 0:05:39]} 10. Nbd2 {[%emt 0:14:21]} cxd4 {[%emt 0:04:14]} 11. Nxd4 {[%emt 0:01:49]} Rc8 {[%emt 0:06:23]} 12. Bc2 {[%emt 0:08:25]} Qc7 {[%emt 0:07:28]} 13. Bd3 {[%emt 0:07:12]} Rfd8 {[%emt 0:03:46]} 14. Qe2 {[%emt 0:08:21]} Ne5 {[%emt 0:05:00]} 15. Bb1 {[%emt 0:03:35]} d5 {[%emt 0:08:28]} 16. f4 {[%emt 0:02:08]} Ng6 {[%emt 0:02:07]} 17. e5 {[%emt 0:01:18]} Nd7 {[%emt 0:09:58]} 18. N2f3 {[%emt 0:05:30]} Nc5 {[%emt 0:07:53]} 19. f5 {[%emt 0:04:18]} Ba6 {[%emt 0:03:43]} 20. Qe3 {[%emt 0:03:16]} Nf8 {[%emt 0:03:20]} 21. Rd1 {[%emt 0:10:42]} Ne4 {[%emt 0:00:36]} 22. fxe6 {[%emt 0:02:48]} fxe6 {[%emt 0:02:41]} 23. Bxe4 {[%emt 0:00:35]} dxe4 {[%emt 0:00:03]} 24. Qxe4 {[%emt 0:00:08]} Bb7 {[%emt 0:01:17]} 25. Qg4 {[%emt 0:00:27]} Bxf3 {[%emt 0:02:52]} 26. Qxf3 {[%emt 0:00:08]} Qxe5 27. Bf4 {[%emt 0:01:12]} Qd5 {[%emt 0:01:14]} 28. Qxd5 {[%emt 0:02:29]} Rxd5 {[%emt 0:00:38]} 29. Nf3 {[%emt 0:01:03]} Rf5 {[%emt 0:05:02]} 30. Be3 {[%emt 0:00:23]} Rb5 {[%emt 0:01:30]} 31. Rd2 {[%emt 0:00:11]} Bf6 {[%emt 0:01:13]} 32. Rad1 {[%emt 0:00:11]} Ra5 {[%emt 0:01:30]} 33. a3 {[%emt 0:00:17]} Rb5 {[%emt 0:00:22]} 34. Bd4 {[%emt 0:01:00]} e5 {[%emt 0:00:36]} 35. Be3 {[%emt 0:00:12]} Ne6 {[%emt 0:00:39]} 36. Kf2 {[%emt 0:00:27]} e4 {[%emt 0:01:55]} 37. Nd4 {[%emt 0:00:33]} Nxd4 {[%emt 0:00:22]} 38. Bxd4 {[%emt 0:00:03]} Bxd4+ {[%emt 0:01:05]} 39. cxd4 {[%emt 0:00:08]} Rb3 {[%emt 0:00:39]} 40. Re1 {[%emt 0:00:00]} Rd3 {[%emt 0:00:00]} 41. Rde2 {[%emt 0:03:37]} Rxd4 1/2-1/2

[Event "58th Akiba Rubinstein A 2022"]
[Site "Polanica-Zdroj"]
[Date "2022.08.14"]
[Round "2.12"]
[White "Kowalczyk, Rafal"]
[Black "Kejna, Piotr"]
[Result "1-0"]
[ECO "B75"]
[WhiteElo "2239"]
[BlackElo "1970"]
[Annotator "TA"]
[PlyCount "85"]
[EventDate "2022.08.13"]
[EventCountry "POL"]
[SourceTitle "playchess.com"]
[Source "ChessBase"]
[SourceQuality "1"]
[TimeControl "40/5400+30:1800+30"]

{[%evp 14,85,56,47,55,54,53,41,44,39,107,92,84,90,139,139,148,130,145,130,145,124,142,120,70,56,122,12,4,0,51,22,45,44,156,155,188,232,210,217,220,199,193,125,93,54,92,96,112,112,226,210,215,195,419,377,415,415,432,432,432,432,425,420,867,867,867,860,845,786,5414,5295,29990,29990]} 1. e4 {[%emt 0:00:05]} c5 {[%emt 0:00:11]} 2. Nf3 {[%emt 0:01:19]} d6 {[%emt 0:00:15]} 3. d4 {[%emt 0:00:08]} cxd4 {[%emt 0:00:10]} 4. Nxd4 {[%emt 0:00:09]} Nf6 {[%emt 0:00:13]} 5. Nc3 {[%emt 0:00:08]} g6 {[%emt 0:00:14]} 6. Be3 {[%emt 0:00:08]} Bg7 {[%emt 0:00:11]} 7. f3 {[%emt 0:00:10]} a6 {[%emt 0:00:18]} 8. Qd2 {[%emt 0:04:30]} h5 {[%emt 0:00:08] 8...b5 is a critical line. B75: Sicilian Dragon: Yugoslav Attack, Miscellaneous.} 9. Be2 {[%emt 0:00:14]} Nbd7 {[%emt 0:00:47]} 10. a4 {[%emt 0:00:10]} b6 {[%emt 0:01:47] White is slightly better.} 11. Nd5 {[%emt 0:00:14]} Nxd5 {[%emt 0:04:47]} (11... Bb7 $14) 12. exd5 $16 {[%emt 0:00:10]} Bb7 {[%emt 0:01:30]} 13. c4 {[%emt 0:00:10]} Rc8 {[%emt 0:03:38]} (13... O-O $142) 14. O-O {[%emt 0:00:29]} O-O {[%emt 0:10:04] [#]} 15. f4 $146 {[%emt 0:04:10][%cal Bf3f4,Bf4f5][%mdl 32] Strongly threatening f5. 0x0.001b83d807d0dp-1022s more active pieces.} ({Predecessor:} 15. a5 bxa5 16. Rxa5 Nc5 17. b4 Bxd4 18. Bxd4 Nb3 19. Qe3 Nxd4 20. Qxd4 Re8 21. f4 {½-½ (59) Szabo,G (2516)-Antal,H (2223) Targu Mures 2022}) 15... Nc5 {[%emt 0:02:19]} 16. f5 {[%emt 0:03:55] Inhibits e6.} e5 {[%emt 0:16:45]} 17. dxe6 {[%emt 0:27:13]} fxe6 {[%emt 0:00:59]} 18. fxg6 {[%emt 0:01:59]} Qh4 {[%emt 0:03:01] Threatens to win with ...Be5.} 19. Nf3 {[%emt 0:14:57] Chess con chili.} Bxf3 {[%emt 0:04:31]} (19... Qe4 $14 20. Rae1 e5) 20. Bxf3 {[%emt 0:08:07]} (20. Rxf3 $16 Rxf3 21. Bxf3 (21. gxf3 Be5 $11)) 20... Nb3 $11 {[%emt 0:10:08]} 21. Qe1 {[%emt 0:00:32]} (21. Qxd6 {seems wilder.} Nxa1 22. Rxa1 Qf6 23. Qxb6 Rb8 24. Qc5) 21... Qxe1 {[%emt 0:05:14]} (21... Qxc4 $11 22. Rd1 Nd4) 22. Raxe1 $14 {[%emt 0:00:11] White wants to play Rd1.} Rxc4 {[%emt 0:00:52]} 23. Bxh5 {[%emt 0:07:08] This bishop pair is nice.} Rxa4 {[%emt 0:04:30] [#]} (23... Rxf1+ $14 24. Kxf1 Rxa4) 24. Rxf8+ $1 $16 {[%emt 0:06:47]} (24. Bxb6 $6 Rxf1+ 25. Kxf1 Rb4 $11) 24... Kxf8 {[%emt 0:00:50] [#]} 25. Bd1 $1 {[%emt 0:03:39]} ({Don't play} 25. Bxb6 $6 Be5 $11) 25... Rb4 {[%emt 0:00:14]} 26. h4 {[%emt 0:00:07][%cal Bh2h4,Bh4h5][%mdl 32]} Nd4 {[%emt 0:05:16]} 27. h5 {[%emt 0:06:17] h6 is the strong threat.} Nf5 {[%emt 0:00:09] Inhibits h6.} 28. Bf2 {[%emt 0:00:33]} (28. Bg5 $18) 28... Be5 {[%emt 0:05:38]} 29. Rf1 {[%emt 0:10:46]} Kg7 {[%emt 0:03:23]} 30. b3 {[%emt 0:00:01]} Bd4 {[%emt 0:02:32]} 31. g4 {[%emt 0:01:01]} Nh6 {[%emt 0:00:57]} (31... Ne3 $16 {was necessary.} 32. Bxe3 Bxe3+ 33. Kg2 Bf4) 32. Kg2 {[%emt 0:00:29] Black must now prevent Bh4.} Bxf2 {[%emt 0:01:56]} 33. Rxf2 $18 {[%emt 0:00:02][%mdl 4096] Endgame And now Kg3 would win. KRB-KRN} a5 $2 {[%emt 0:04:31]} ({Weaker is} 33... Rd4 34. Bf3 $16 (34. Be2 a5 $14)) (33... Nxg4 34. Rf7+ Kg8) 34. Rc2 {[%emt 0:00:26] aiming for g5.} Kf6 {[%emt 0:04:20]} 35. Rc7 {[%emt 0:00:57]} Nxg4 {[%emt 0:02:00]} 36. Rf7+ {[%emt 0:00:34]} Kg5 {[%emt 0:00:12]} 37. g7 {[%emt 0:00:29]} Nh6 {[%emt 0:00:03]} 38. Rf8 {[%emt 0:00:27] Hoping for Rh8.} Ng8 {[%emt 0:01:47]} (38... Re4 $142 39. Bf3 Re5 40. g8=Q+ Nxg8) 39. Rxg8 {[%emt 0:00:17] Rf8 would kill now.} Kh6 {[%emt 0:00:05]} 40. Re8 {[%emt 0:00:00]} Kxg7 {[%emt 0:00:00]} 41. Rxe6 {[%emt 0:00:56]} b5 {[%emt 0:02:08]} 42. h6+ {[%emt 0:03:03]} Kh8 {[%emt 0:00:05]} 43. Kg3 {[%emt 0:00:51] Weighted Error Value: White=0.11 (very precise) /Black=0.55} 1-0

[Event "58th Akiba Rubinstein A 2022"]
[Site "Polanica-Zdroj"]
[Date "2022.08.14"]
[Round "2.13"]
[White "Kazmierowski, Tymon"]
[Black "Siekanska, Zuzanna"]
[Result "1/2-1/2"]
[ECO "D30"]
[WhiteElo "1961"]
[BlackElo "1712"]
[Annotator "NA RC"]
[PlyCount "77"]
[EventDate "2022.08.13"]
[EventCountry "POL"]
[SourceTitle "playchess.com"]
[Source "ChessBase"]
[SourceQuality "1"]
[TimeControl "40/5400+30:1800+30"]

1. d4 {[%emt 0:00:03]} d5 {[%emt 0:00:06]} 2. c4 {[%emt 0:00:06]} e6 {[%emt 0:00:03]} 3. Nf3 {[%emt 0:00:08]} Nf6 {[%emt 0:00:04]} 4. g3 {[%emt 0:00:06]} dxc4 {[%emt 0:00:10]} 5. Qa4+ {[%emt 0:01:26]} Bd7 {[%emt 0:00:26]} 6. Qxc4 {[%emt 0:00:16]} Bc6 {[%emt 0:00:34]} 7. Bg2 {[%emt 0:00:44]} Bd5 {[%emt 0:00:20]} 8. Qd3 {[%emt 0:04:37]} Be4 {[%emt 0:06:55]} 9. Qd1 {[%emt 0:06:10]} c5 {[%emt 0:00:45]} 10. O-O {[%emt 0:07:16]} cxd4 {[%emt 0:02:43]} 11. Qxd4 {[%emt 0:02:39]} Qxd4 {[%emt 0:01:26]} 12. Nxd4 {[%emt 0:01:43]} Bxg2 {[%emt 0:00:41]} 13. Kxg2 {[%emt 0:00:03]} Bc5 {[%emt 0:01:38]} 14. Nb3 {[%emt 0:07:12]} Bb6 {[%emt 0:00:50]} 15. Nc3 {[%emt 0:00:57]} O-O {[%emt 0:02:50]} 16. Bf4 {[%emt 0:03:11]} Na6 {[%emt 0:09:10]} 17. Rfd1 {[%emt 0:07:52]} Rfd8 {[%emt 0:01:28]} 18. Kf3 {[%emt 0:04:45]} Nc5 {[%emt 0:05:21]} 19. Nxc5 {[%emt 0:06:30]} Bxc5 {[%emt 0:00:10]} 20. Bc7 {[%emt 0:06:44]} Rxd1 {[%emt 0:01:21]} 21. Rxd1 {[%emt 0:01:33]} Rc8 {[%emt 0:01:21]} 22. Be5 {[%emt 0:01:41]} Be7 {[%emt 0:03:34]} 23. e4 {[%emt 0:07:49]} Rd8 {[%emt 0:01:31]} 24. Rxd8+ {[%emt 0:03:31]} Bxd8 {[%emt 0:00:08]} 25. Bd4 {[%emt 0:00:59]} a6 {[%emt 0:01:16]} 26. Na4 {[%emt 0:05:04]} Nd7 {[%emt 0:00:31]} 27. Nc5 {[%emt 0:02:17]} Nxc5 {[%emt 0:01:11]} 28. Bxc5 {[%emt 0:00:01]} e5 {[%emt 0:00:56]} 29. Ke3 {[%emt 0:01:46]} f6 {[%emt 0:00:34]} 30. Kd3 {[%emt 0:01:33]} Kf7 {[%emt 0:00:12]} 31. Kc4 {[%emt 0:01:24]} Ke6 {[%emt 0:00:16]} 32. Bf8 {[%emt 0:01:10]} g6 {[%emt 0:01:58]} 33. Bc5 {[%emt 0:01:47]} f5 {[%emt 0:01:31]} 34. Kd3 {[%emt 0:00:54]} h5 {[%emt 0:01:53]} 35. f3 {[%emt 0:04:27]} Ba5 {[%emt 0:01:21]} 36. Be3 {[%emt 0:03:00]} Bc7 {[%emt 0:01:35]} 37. Bf2 {[%emt 0:02:28]} Ba5 {[%emt 0:00:42]} 38. Be3 {[%emt 0:00:12]} Bc7 {[%emt 0:00:06]} 39. Bf2 {[%emt 0:00:04]} 1/2-1/2